fUSD/lending_fUSD_20240220
["ID","MTS","AMOUNT","RATE_DAILY","PERIOD"]
[314534353,1708405911892,-500.0,0.00038691,6]
[314534354,1708405911901,-500.0,0.00038691,6]
[314534355,1708405911910,-500.0,0.00038692,6]
[314534356,1708405911919,-500.0,0.00038692,6]
[314534357,1708405911928,-500.0,0.00038692,6]
[314534358,1708405911938,-500.0,0.00038692,6]
[314534359,1708405911947,-500.0,0.00038692,6]
[314534360,1708405911957,-154.4229183,0.00038692,6]
[314534361,1708405911966,-500.0,0.00038692,6]
[314534362,1708405911975,-500.0,0.00038692,6]
[314534363,1708405911987,-500.0,0.00038692,6]
[314534364,1708405911996,-500.0,0.00038692,6]
[314534365,1708405912005,-500.0,0.00038692,6]
[314534366,1708405912015,-500.0,0.00038692,6]
[314534367,1708405912025,-500.0,0.00038692,6]
[314534368,1708405912034,-500.0,0.00038692,6]
[314534369,1708405912045,-500.0,0.00038692,6]
[314534370,1708405912054,-500.0,0.00038692,2]
[314534371,1708405912064,-379.85331582,0.00038692,6]
[314534372,1708405912074,-500.0,0.00038692,6]
[314534373,1708405912083,-500.0,0.00038692,6]
[314534374,1708405912092,-500.0,0.00038692,6]
[314534375,1708405912101,-500.0,0.00038692,6]
[314534376,1708405912110,-500.0,0.00038692,6]
[314534377,1708405912118,-500.0,0.00038692,6]
[314534378,1708405912127,-500.0,0.00038692,2]
[314534379,1708405912136,-447.11140737,0.00038692,6]
[314534380,1708405912145,-500.0,0.00038692,6]
[314534381,1708405912155,-810.33,0.00038692,6]
[314534382,1708405912164,-354.99054013,0.00038692,6]
[314534383,1708405912173,-500.0,0.00038692,6]
[314534384,1708405912182,-280.83611372,0.00038692,6]
[314534385,1708405912192,-884.12,0.00038692,6]
[314534386,1708405912201,-233.28653551,0.00038692,6]
[314534387,1708405912211,-743.52,0.00038692,6]
[314534388,1708405912220,-906.89,0.00038692,6]
[314534389,1708405912229,-500.0,0.00038692,6]
[314534390,1708405912238,-229.57048448,0.00038692,6]
[314534391,1708405912247,-247.66187287,0.00038692,6]
[314534392,1708405912257,-500.0,0.00038692,6]
[314534393,1708405912266,-500.0,0.00038692,6]
[314534394,1708405912276,-500.0,0.00038692,6]
[314534395,1708405912285,-500.0,0.00038692,6]
[314534396,1708405912295,-256.32994437,0.00038692,6]
[314534397,1708405912304,-648.5,0.00038692,6]
[314534398,1708405912314,-500.0,0.00038692,6]
[314534399,1708405912323,-590.95,0.00038692,6]
[314534400,1708405912333,-500.0,0.00038693,6]
[314534401,1708405912342,-500.0,0.00038693,6]
[314534402,1708405912351,-575.39,0.00038693,6]
[314534403,1708405912360,-626.27,0.00038693,2]
[314534404,1708405912369,-500.0,0.00038693,6]
[314534405,1708405912380,-994.41,0.00038693,6]
[314534406,1708405912390,-642.0566659,0.00038693,6]
[314534407,1708405912400,-1239.4,0.00038693,6]
[314534408,1708405912411,-500.0,0.00038693,6]
[314534409,1708405912421,-500.0,0.00038693,6]
[314534410,1708405912431,-500.0,0.00038693,6]
[314534411,1708405912443,-500.0,0.00038693,6]
[314534412,1708405912454,-655.95,0.00038693,6]
[314534413,1708405912464,-587.57,0.00038693,6]
[314534414,1708405912474,-643.06,0.00038693,6]
[314534415,1708405912483,-894.33,0.00038693,6]
[314534416,1708405912493,-500.0,0.00038693,6]
[314534417,1708405912502,-500.0,0.00038693,6]
[314534418,1708405912511,-165.54639745,0.00038693,6]
[314534419,1708405912522,-500.0,0.00038693,6]
[314534420,1708405912532,-593.69,0.00038693,6]
[314534421,1708405912542,-688.4,0.00038693,6]
[314534422,1708405912551,-500.0,0.00038693,6]
[314534423,1708405912560,-500.0,0.00038693,6]
[314534424,1708405912570,-500.0,0.00038693,6]
[314534425,1708405912580,-500.0,0.00038693,6]
[314534426,1708405912589,-500.0,0.00038693,6]
[314534427,1708405912598,-605.41,0.00038693,6]
[314534428,1708405912608,-547.12,0.00038693,6]
[314534429,1708405912618,-500.0,0.00038693,6]
[314534430,1708405912627,-579.04,0.00038693,6]
[314534431,1708405912637,-500.0,0.00038693,6]
[314534432,1708405912646,-1041.20466008,0.000387,2]
[314534433,1708405912656,-156.0,0.00038752,7]
[314534434,1708405912665,-2343.98,0.00038755,6]
[314534435,1708405912675,-1165.67,0.00038755,6]
[314534436,1708405912686,-1165.84,0.00038755,6]
[314534437,1708405912695,-543.99,0.00038755,6]
[314534438,1708405912705,-649.17,0.00038755,6]
[314534439,1708405912715,-882.84,0.00038755,6]
[314534440,1708405912724,-911.74,0.00038755,6]
[314534441,1708405912733,-2167.09,0.00038755,6]
[314534442,1708405912743,-4210.64,0.00038755,6]
[314534443,1708405912753,-19216.17,0.00038755,6]
[314534444,1708405912762,-948.0,0.00038755,6]
[314534445,1708405912772,-500.0,0.00038755,6]
[314534446,1708405912781,-1093.22,0.00038755,6]
[314534447,1708405912791,-1692.44,0.00038755,6]
[314534448,1708405912800,-500.0,0.00038755,6]
[314534449,1708405912809,-1578.14,0.00038755,6]
[314534450,1708405912818,-1099.35,0.00038755,6]
[314534451,1708405912827,-975.65,0.00038755,6]
[314534452,1708405912837,-708.65,0.00038755,6]
[314534453,1708405912846,-6268.26,0.00038755,6]
[314534454,1708405912856,-500.0,0.00038755,6]
[314534455,1708405912866,-500.0,0.00038755,6]
[314534456,1708405912876,-901.49,0.00038755,6]
[314534457,1708405912886,-651.6,0.00038755,6]
[314534458,1708405912895,-1025.4,0.00038755,6]
[314534459,1708405912905,-500.0,0.00038755,6]
[314534460,1708405912917,-3156.54,0.00038755,6]
[314534461,1708405912927,-857.52,0.00038755,6]
[314534462,1708405912942,-1107.07,0.00038755,6]
[314534463,1708405912953,-799.36,0.00038755,6]
[314534464,1708405912964,-833.39,0.00038755,6]
[314534465,1708405912975,-757.3,0.00038755,6]
[314534466,1708405912990,-3560.7,0.00038755,6]
[314534467,1708405913000,-1705.39,0.00038755,6]
[314534468,1708405913011,-789.45,0.00038755,6]
[314534469,1708405913023,-3144.99,0.00038755,6]
[314534470,1708405913034,-5007.03,0.00038755,6]
[314534471,1708405913046,-1314.19,0.00038755,6]
[314534472,1708405913057,-985.9,0.00038755,6]
[314534473,1708405913068,-1051.08,0.00038755,6]
[314534474,1708405913080,-1499.97,0.00038755,6]
[314534475,1708405913090,-7345.36,0.00038755,6]
[314534476,1708405913101,-1204.36,0.00038755,6]
[314534477,1708405913111,-500.0,0.00038755,6]
[314534478,1708405913122,-770.93,0.00038755,6]
[314534479,1708405913132,-2816.2,0.00038755,6]
[314534480,1708405913142,-856.91,0.00038755,6]
[314534481,1708405913152,-566.48,0.00038755,6]
[314534482,1708405913162,-529.69,0.00038755,6]
[314534483,1708405913172,-631.33,0.00038755,6]
[314534484,1708405913186,-934.23,0.00038755,6]
[314534485,1708405913198,-503.72,0.00038755,6]
[314534486,1708405913209,-763.13,0.00038755,6]
[314534487,1708405913220,-506.06,0.00038755,6]
[314534488,1708405913230,-500.0,0.00038755,6]
[314534489,1708405913240,-500.0,0.00038755,6]
[314534490,1708405913250,-802.39,0.00038755,6]
[314534491,1708405913261,-1007.84,0.00038755,6]
[314534492,1708405913272,-500.0,0.00038756,6]
[314534493,1708405913282,-500.0,0.00038756,6]
[314534494,1708405913292,-500.0,0.00038756,6]
[314534495,1708405913302,-1224.75,0.00038756,6]
[314534496,1708405913312,-500.0,0.00038756,6]
[314534497,1708405913322,-546.6,0.00038756,2]
[314534498,1708405913331,-500.0,0.00038756,6]
[314534499,1708405913342,-500.0,0.00038756,6]
[314534500,1708405913351,-500.0,0.00038756,6]
[314534501,1708405913361,-642.65399866,0.00038756,6]
[314534502,1708405913371,-500.0,0.00038756,6]
[314534503,1708405913380,-500.0,0.00038756,6]
[314534504,1708405913390,-500.0,0.00038756,6]
[314534505,1708405913400,-1502.26,0.00038756,6]
[314534506,1708405913410,-500.0,0.00038756,6]
[314534507,1708405913419,-500.0,0.00038756,6]
[314534508,1708405913429,-855.67,0.00038756,6]
[314534509,1708405913444,-500.0,0.00038756,6]
[314534510,1708405913454,-500.0,0.00038756,6]
[314534511,1708405913464,-500.0,0.00038756,6]
[314534512,1708405913474,-500.0,0.00038756,6]
[314534513,1708405913484,-500.0,0.00038756,6]
[314534514,1708405913494,-500.0,0.00038756,6]
[314534515,1708405913503,-500.0,0.00038756,6]
[314534516,1708405913513,-500.0,0.00038756,6]
[314534517,1708405913522,-500.0,0.00038756,6]
[314534518,1708405913532,-500.0,0.00038756,6]
[314534519,1708405913541,-500.0,0.00038756,6]
[314534520,1708405913551,-500.0,0.00038756,6]
[314534521,1708405913561,-500.0,0.00038756,6]
[314534522,1708405913571,-500.0,0.00038756,6]
[314534523,1708405913580,-500.0,0.00038756,6]
[314534524,1708405913590,-500.0,0.00038756,6]
[314534525,1708405913600,-500.0,0.00038756,6]
[314534526,1708405913609,-517.91,0.00038756,6]
[314534527,1708405913619,-500.0,0.00038756,6]
[314534528,1708405913629,-500.0,0.00038756,6]
[314534529,1708405913639,-500.0,0.00038756,6]
[314534530,1708405913649,-500.0,0.00038756,6]
[314534531,1708405913658,-500.0,0.00038756,6]
[314534532,1708405913668,-500.0,0.00038756,6]
[314534533,1708405913677,-500.0,0.00038756,6]
[314534534,1708405913689,-503.07,0.00038756,6]
[314534535,1708405913699,-500.0,0.00038756,6]
[314534536,1708405913709,-500.0,0.00038756,6]
[314534537,1708405913720,-857.77,0.00038756,6]
[314534538,1708405913729,-610.42,0.00038756,6]
[314534539,1708405913739,-500.0,0.00038756,6]
[314534540,1708405913749,-500.0,0.00038756,6]
[314534541,1708405913758,-500.0,0.00038756,6]
[314534542,1708405913768,-584.52,0.00038756,6]
[314534543,1708405913777,-622.47,0.00038756,6]
[314534544,1708405913787,-500.0,0.00038756,6]
[314534545,1708405913797,-500.0,0.00038756,6]
[314534546,1708405913806,-176.29,0.00038756,6]
[314534547,1708405913815,-500.0,0.00038756,6]
[314534548,1708405913826,-500.0,0.00038756,6]
[314534549,1708405913836,-500.0,0.00038756,6]
[314534550,1708405913846,-391.39578374,0.00038756,6]
[314534551,1708405913856,-500.0,0.00038756,6]
[314534552,1708405913865,-500.0,0.00038756,6]
[314534553,1708405913875,-500.0,0.00038756,6]
[314534554,1708405913885,-500.0,0.00038756,6]
[314534555,1708405913894,-500.0,0.00038756,6]
[314534556,1708405913904,-653.77,0.00038756,6]
[314534557,1708405913914,-651.49,0.00038756,6]
[314534558,1708405913924,-500.0,0.00038756,6]
[314534559,1708405913935,-500.0,0.00038756,6]
[314534560,1708405913946,-568.04,0.00038756,6]
[314534561,1708405913956,-500.0,0.00038756,6]
[314534562,1708405913966,-595.15245877,0.00038756,6]
[314534563,1708405913976,-591.04340017,0.00038756,6]
[314534564,1708405913988,-500.0,0.00038756,6]
[314534565,1708405913997,-502.26,0.00038756,6]
[314534566,1708405914007,-500.0,0.00038756,6]
[314534567,1708405914017,-500.0,0.00038756,6]
[314534568,1708405914027,-287.55679148,0.00038756,6]
[314534569,1708405914036,-592.29,0.00038756,6]
[314534570,1708405914046,-609.58,0.00038756,6]
[314534571,1708405914056,-500.0,0.00038756,6]
[314534572,1708405914066,-500.0,0.00038756,6]
[314534573,1708405914077,-175.69024569,0.00038756,6]
[314534574,1708405914086,-500.0,0.00038756,6]
[314534575,1708405914096,-500.0,0.00038756,6]
[314534576,1708405914106,-1156.3,0.00038756,6]
[314534577,1708405914116,-500.0,0.00038756,6]
[314534578,1708405914126,-500.0,0.00038756,6]
[314534579,1708405914136,-500.0,0.00038756,6]
[314534580,1708405914145,-500.0,0.00038756,6]
[314534581,1708405914155,-1450.35,0.00038756,6]
[314534582,1708405914166,-710.23,0.00038756,6]
[314534583,1708405914176,-612.87,0.00038756,6]
[314534584,1708405914187,-1376.34,0.00038756,6]
[314534585,1708405914197,-500.0,0.00038756,6]
[314534586,1708405914207,-2122.43,0.00038756,6]
[314534587,1708405914217,-500.0,0.00038756,6]
[314534588,1708405914228,-500.0,0.00038756,6]
[314534589,1708405914238,-1666.11,0.00038756,6]
[314534590,1708405914247,-996.96,0.00038756,6]
[314534591,1708405914257,-500.0,0.00038756,6]
[314534592,1708405914267,-2200.91,0.00038756,6]
[314534593,1708405914278,-3505.57,0.00038756,6]
[314534594,1708405914287,-1549.1,0.00038756,6]
[314534595,1708405914297,-500.0,0.00038756,6]
[314534596,1708405914307,-1427.74,0.00038756,6]
[314534597,1708405914317,-500.0,0.00038756,6]
[314534598,1708405914327,-1106.24,0.00038756,6]
[314534599,1708405914337,-500.0,0.00038756,6]
[314534600,1708405914347,-558.37,0.00038756,6]
[314534601,1708405914357,-8266.61,0.00038756,6]
[314534602,1708405914367,-500.0,0.00038756,6]
[314534603,1708405914377,-500.0,0.00038756,6]
[314534604,1708405914387,-500.0,0.00038756,6]
[314534605,1708405914398,-500.0,0.00038756,6]
[314534606,1708405914408,-1222.07,0.00038756,6]
[314534607,1708405914419,-500.0,0.00038756,6]
[314534608,1708405914429,-1383.97,0.00038756,6]
[314534609,1708405914442,-1188.64,0.00038756,6]
[314534610,1708405914452,-256.29357824,0.00038756,6]
[314534611,1708405914462,-1841.65,0.00038756,6]
[314534612,1708405914473,-514.51,0.00038756,6]
[314534613,1708405914483,-500.0,0.00038756,6]
[314534614,1708405914493,-500.0,0.00038756,6]
[314534615,1708405914504,-500.0,0.00038756,6]
[314534616,1708405914515,-500.0,0.00038756,6]
[314534617,1708405914526,-2051.17,0.00038756,6]
[314534618,1708405914536,-500.0,0.00038756,6]
[314534619,1708405914547,-1668.23,0.00038756,6]
[314534620,1708405914558,-248.89692739,0.00038756,6]
[314534621,1708405914568,-1172.7,0.00038756,6]
[314534622,1708405914578,-500.0,0.00038756,6]
[314534623,1708405914588,-1083.34,0.00038756,6]
[314534624,1708405914598,-1188.54265443,0.00038765,2]
[314534625,1708405914607,-500.0,0.00038791,6]
[314534626,1708405914617,-500.0,0.00038791,6]
[314534627,1708405914627,-157.0212031,0.00038798,9]
[314534628,1708405914637,-2231.06355972,0.00038802,2]
[314534629,1708405914647,-1020.38,0.00038856,6]
[314534630,1708405914657,-1222.32,0.00038856,6]
[314534631,1708405914667,-500.0,0.00038856,6]
[314534632,1708405914678,-1934.95,0.00038856,6]
[314534633,1708405914690,-795.84,0.00038856,6]
[314534634,1708405914700,-1767.15,0.00038856,6]
[314534635,1708405914710,-1015.81,0.00038856,6]
[314534636,1708405914720,-734.77,0.00038856,6]
[314534637,1708405914730,-1939.44,0.00038856,6]
[314534638,1708405914938,-1351.97,0.00038856,6]
[314534639,1708405914948,-1088.16,0.00038856,6]
[314534640,1708405914957,-1475.67,0.00038856,6]
[314534641,1708405914967,-1038.28,0.00038856,6]
[314534642,1708405914977,-1154.43,0.00038856,6]
[314534643,1708405914988,-1030.29,0.00038856,6]
[314534644,1708405914997,-2781.04,0.00038856,6]
[314534645,1708405915006,-524.0,0.00038856,6]
[314534646,1708405915016,-677.33,0.00038856,6]
[314534647,1708405915027,-4170.19,0.00038856,6]
[314534648,1708405915037,-500.0,0.00038856,6]
[314534649,1708405915049,-1974.77,0.00038856,6]
[314534650,1708405915059,-3026.21,0.00038856,6]
[314534651,1708405915071,-686.23,0.00038856,6]
[314534652,1708405915081,-764.58,0.00038856,6]
[314534653,1708405915091,-765.68,0.00038856,6]
[314534654,1708405915101,-1513.9,0.00038856,6]
[314534655,1708405915110,-1299.32,0.00038856,6]
[314534656,1708405915120,-940.65,0.00038856,6]
[314534657,1708405915130,-584.61515562,0.00038857,2]
[314534658,1708405915139,-921.1,0.00038857,6]
[314534659,1708405915149,-1958.76,0.00038857,6]
[314534660,1708405915158,-1249.32,0.00038857,6]
[314534661,1708405915168,-902.22,0.00038857,6]
[314534662,1708405915178,-664.99,0.00038857,6]
[314534663,1708405915189,-669.7,0.00038857,6]
[314534664,1708405915200,-3868.49,0.00038857,6]
[314534665,1708405915209,-1885.97,0.00038857,6]
[314534666,1708405915219,-658.2,0.00038857,6]
[314534667,1708405915228,-1639.72,0.00038857,6]
[314534668,1708405915237,-1006.78,0.00038857,6]
[314534669,1708405915247,-673.99,0.00038857,6]
[314534670,1708405915258,-628.34355249,0.00038857,6]
[314534671,1708405915267,-505.6,0.00038857,6]
[314534672,1708405915278,-1619.9,0.00038857,6]
[314534673,1708405915286,-927.69,0.00038857,6]
[314534674,1708405915297,-2967.23,0.00038857,6]
[314534675,1708405915306,-1060.89,0.00038857,6]
[314534676,1708405915317,-1666.19,0.00038857,6]
[314534677,1708405915326,-720.79,0.00038857,6]
[314534678,1708405915337,-1070.65,0.00038857,6]
[314534679,1708405915347,-500.84,0.00038857,6]
[314534680,1708405915356,-999.67,0.00038857,6]
[314534681,1708405915365,-850.24,0.00038857,6]
[314534682,1708405915374,-1626.55,0.00038857,6]
[314534683,1708405915385,-873.93,0.00038857,6]
[314534684,1708405915395,-500.0,0.00038857,6]
[314534685,1708405915404,-1425.91,0.00038857,6]
[314534686,1708405915413,-156.0,0.00038889,7]
[314534687,1708405915423,-2140.62116848,0.000389,2]
[314534688,1708405915434,-122395.578905,0.000389,3]
[314534689,1708405915444,-12029.79982055,0.000389,2]
[314534690,1708405915453,-508.36324065,0.000389,2]
[314534691,1708405915463,-23078.3,0.000389,7]
[314534692,1708405915472,-567.10842992,0.000389,2]
[314534693,1708405915482,-567.10842992,0.000389,2]
[314534694,1708405915491,-567.10842992,0.000389,2]
[314534695,1708405915502,-567.10842992,0.000389,2]
[314534696,1708405915511,-567.10842992,0.000389,2]
[314534697,1708405915521,-567.10842992,0.000389,2]
[314534698,1708405915530,-500.0,0.00038904,2]
[314534699,1708405915540,-510.83,0.00038965,6]
[314534700,1708405915550,-500.0,0.00038965,6]
[314534701,1708405915559,-500.0,0.00038965,6]
[314534702,1708405915569,-791.81,0.00038965,6]
[314534703,1708405915578,-500.0,0.00038965,6]
[314534704,1708405915588,-500.0,0.00038965,6]
[314534705,1708405915597,-500.0,0.00038965,6]
[314534706,1708405915606,-500.0,0.00038965,6]
[314534707,1708405915616,-500.0,0.00038965,6]
[314534708,1708405915625,-513.26,0.00038965,6]
[314534709,1708405915634,-500.0,0.00038965,6]
[314534710,1708405915643,-500.0,0.00038965,6]
[314534711,1708405915653,-500.0,0.00038965,6]
[314534712,1708405915662,-500.0,0.00038965,6]
[314534713,1708405915671,-500.0,0.00038965,6]
[314534714,1708405915682,-500.0,0.00038965,6]
[314534715,1708405915692,-500.0,0.00038965,6]
[314534716,1708405915701,-644.76,0.00038965,6]
[314534717,1708405915710,-500.0,0.00038965,6]
[314534718,1708405915719,-500.0,0.00038965,6]
[314534719,1708405915729,-500.0,0.00038965,6]
[314534720,1708405915738,-500.0,0.00038965,6]
[314534721,1708405915746,-500.0,0.00038965,6]
[314534722,1708405915756,-500.0,0.00038965,6]
[314534723,1708405915765,-565.81,0.00038965,6]
[314534724,1708405915774,-500.0,0.00038965,6]
[314534725,1708405915783,-500.0,0.00038965,6]
[314534726,1708405915792,-500.0,0.00038965,6]
[314534727,1708405915801,-500.0,0.00038965,6]
[314534728,1708405915811,-500.0,0.00038965,6]
[314534729,1708405915820,-503.91874221,0.00038965,6]
[314534730,1708405915829,-500.0,0.00038965,6]
[314534731,1708405915838,-500.0,0.00038965,6]
[314534732,1708405915847,-500.0,0.00038965,6]
[314534733,1708405915856,-340.75809442,0.00038965,6]
[314534734,1708405915865,-551.79,0.00038965,6]
[314534735,1708405915874,-581.45,0.00038965,6]
[314534736,1708405915883,-500.0,0.00038965,6]
[314534737,1708405915892,-500.0,0.00038965,6]
[314534738,1708405915901,-523.73,0.00038965,6]
[314534739,1708405915910,-500.0,0.00038965,6]
[314534740,1708405915920,-515.57,0.00038965,6]
[314534741,1708405915929,-720.38,0.00038965,6]
[314534742,1708405915939,-500.0,0.00038965,6]
[314534743,1708405915948,-500.0,0.00038965,6]
[314534744,1708405915957,-500.0,0.00038965,6]
[314534745,1708405915967,-500.0,0.00038965,6]
[314534746,1708405915977,-500.0,0.00038965,6]
[314534747,1708405915987,-500.0,0.00038965,6]
[314534748,1708405915997,-500.0,0.00038965,6]
[314534749,1708405916006,-500.0,0.00038965,6]
[314534750,1708405916016,-500.0,0.00038965,6]
[314534751,1708405916026,-547.53,0.00038965,6]
[314534752,1708405916035,-500.0,0.00038965,6]
[314534753,1708405916045,-500.0,0.00038965,6]
[314534754,1708405916054,-500.0,0.00038965,6]
[314534755,1708405916064,-500.0,0.00038965,6]
[314534756,1708405916074,-500.0,0.00038965,6]
[314534757,1708405916085,-500.0,0.00038965,6]
[314534758,1708405916094,-500.0,0.00038965,6]
[314534759,1708405916103,-538.99,0.00038965,6]
[314534760,1708405916112,-500.0,0.00038965,6]
[314534761,1708405916121,-500.0,0.00038965,6]
[314534762,1708405916131,-500.0,0.00038965,6]
[314534763,1708405916140,-815.58,0.00038965,6]
[314534764,1708405916149,-500.0,0.00038965,6]
[314534765,1708405916158,-500.0,0.00038965,6]
[314534766,1708405916167,-500.0,0.00038965,6]
[314534767,1708405916177,-500.0,0.00038965,6]
[314534768,1708405916187,-500.0,0.00038965,6]
[314534769,1708405916196,-606.1,0.00038965,6]
[314534770,1708405916205,-500.0,0.00038965,6]
[314534771,1708405916215,-825.71,0.00038965,6]
[314534772,1708405916225,-500.0,0.00038965,6]
[314534773,1708405916234,-500.0,0.00038965,6]
[314534774,1708405916243,-500.0,0.00038965,6]
[314534775,1708405916252,-633.47646303,0.00038966,6]
[314534776,1708405916261,-310.13000244,0.00038966,6]
[314534777,1708405916270,-500.0,0.00038966,6]
[314534778,1708405916280,-500.0,0.00038966,6]
[314534779,1708405916289,-500.0,0.00038966,6]
[314534780,1708405916298,-500.0,0.00038966,6]
[314534781,1708405916307,-500.0,0.00038966,6]
[314534782,1708405916316,-500.0,0.00038966,6]
[314534783,1708405916325,-500.0,0.00038966,6]
[314534784,1708405916335,-500.0,0.00038966,6]
[314534785,1708405916344,-500.0,0.00038966,6]
[314534786,1708405916353,-235.66812718,0.00038966,6]
[314534787,1708405916363,-646.6200857,0.00038966,6]
[314534788,1708405916372,-500.0,0.00038966,6]
[314534789,1708405916382,-500.0,0.00038966,2]
[314534790,1708405916392,-500.0,0.00038966,6]
[314534791,1708405916401,-500.0,0.00038966,6]
[314534792,1708405916410,-500.0,0.00038966,6]
[314534793,1708405916420,-500.0,0.00038966,6]
[314534794,1708405916429,-322.30148978,0.00038966,6]
[314534795,1708405916440,-500.0,0.00038966,6]
[314534796,1708405916450,-500.0,0.00038966,2]
[314534797,1708405916460,-513.54039986,0.00038966,6]
[314534798,1708405916469,-810.33,0.00038966,6]
[314534799,1708405916479,-489.39,0.00038966,6]
[314534800,1708405916489,-884.12,0.00038966,6]
[314534801,1708405916499,-743.52,0.00038966,6]
[314534802,1708405916509,-906.89,0.00038966,6]
[314534803,1708405916518,-500.0,0.00038966,6]
[314534804,1708405916528,-500.0,0.00038966,6]
[314534805,1708405916538,-500.0,0.00038966,6]
[314534806,1708405916547,-500.0,0.00038966,6]
[314534807,1708405916558,-500.0,0.00038966,6]
[314534808,1708405916568,-648.5,0.00038966,6]
[314534809,1708405916579,-285.56172189,0.00038966,6]
[314534810,1708405916588,-590.95,0.00038966,6]
[314534811,1708405916599,-500.0,0.00038967,6]
[314534812,1708405916609,-500.0,0.00038967,6]
[314534813,1708405916619,-575.39,0.00038967,6]
[314534814,1708405916629,-626.27,0.00038967,2]
[314534815,1708405916638,-500.0,0.00038967,6]
[314534816,1708405916648,-994.41,0.00038967,6]
[314534817,1708405916658,-1239.4,0.00038967,6]
[314534818,1708405916667,-500.0,0.00038967,6]
[314534819,1708405916677,-500.0,0.00038967,6]
[314534820,1708405916688,-500.0,0.00038967,6]
[314534821,1708405916698,-500.0,0.00038967,6]
[314534822,1708405916707,-655.95,0.00038967,6]
[314534823,1708405916717,-587.57,0.00038967,6]
[314534824,1708405916727,-643.06,0.00038967,6]
[314534825,1708405916736,-894.33,0.00038967,6]
[314534826,1708405916746,-500.0,0.00038967,6]
[314534827,1708405916756,-500.0,0.00038967,6]
[314534828,1708405916766,-500.0,0.00038967,6]
[314534829,1708405916776,-593.69,0.00038967,6]
[314534830,1708405916785,-688.4,0.00038967,6]
[314534831,1708405916794,-500.0,0.00038967,6]
[314534832,1708405916803,-500.0,0.00038967,6]
[314534833,1708405916813,-500.0,0.00038967,6]
[314534834,1708405916824,-500.0,0.00038967,6]
[314534835,1708405916834,-411.9,0.00038967,6]
[314534836,1708405916845,-605.41,0.00038967,6]
[314534837,1708405916855,-547.12,0.00038967,6]
[314534838,1708405916865,-500.0,0.00038967,6]
[314534839,1708405916874,-579.04,0.00038967,6]
[314534840,1708405916884,-500.0,0.00038967,6]
[314534841,1708405916893,-66704.16328467,0.0003897,2]
[314534842,1708405916903,-1475.46,0.00038999,2]
[314534843,1708405916913,-153.0,0.00039,30]
[314534844,1708405916922,-300.0,0.00039,14]
[314534845,1708405916931,-273.91334045,0.00039,2]
[314534846,1708405916942,-231000.0,0.00039,2]
[314534847,1708405916951,-52226.28298674,0.00039,30]
[314534848,1708405916960,-216.08096392,0.00039,10]
[314534849,1708405916970,-1100.0,0.00039,3]
[314534850,1708405916979,-150.607816,0.00039,2]
[314534851,1708405916989,-208.0,0.00039012,10]
[314534852,1708405916999,-156.0,0.00039026,7]